bitfinex-derivatives/quotes_SOLF0:USTF0_20241103
["timestamp","ask_amount","ask_price","bid_price","bid_amount"]
[1730676394246,1.3081,162.2,162.17,3.0841]
[1730676396149,1.2748,162.21,162.19,3.0838]
[1730676396451,65.78789374,162.23,162.15,14.81248085]
[1730676396851,3.0833,162.22,162.2,3.0836]
[1730676397049,65.78789374,162.23,162.15,14.81248085]
[1730676397246,65.78789374,162.23,162.13,3.26]
[1730676397247,3.0828,162.25,162.2,3.0836]
[1730676397449,12.5547875,162.25,162.2,9.4719875]
[1730676398351,12.5547875,162.25,162.21,3.0833]
[1730676398658,3.083,162.24,162.21,3.0833]
[1730676405256,9.4719875,162.23,162.18,12.7319875]
[1730676405452,9.4719875,162.22,162.17,9.4719875]
[1730676405758,9.4719875,162.2,162.16,3.24]
[1730676406359,9.4719875,162.2,162.15,9.4719875]
[1730676407156,9.4719875,162.17,162.12,9.4719875]
[1730676407353,9.4719875,162.17,162.12,12.7119875]
[1730676409160,3.0845,162.16,162.12,15.7969875]
[1730676409456,9.4719875,162.16,162.11,9.4719875]
[1730676409655,9.4719875,162.16,162.09,12.7119875]
[1730676410449,9.4719875,162.14,162.08,12.7119875]
[1730676411050,9.4719875,162.14,162.1,9.4719875]
[1730676411264,9.4719875,162.18,162.13,9.4719875]
[1730676411763,12.5563875,162.17,162.12,3.0851]
[1730676412860,9.4719875,162.17,162.12,3.0851]
[1730676413167,12.5568875,162.14,162.1,3.0855]
[1730676414567,9.4719875,162.16,162.1,3.0855]
[1730676414768,9.4719875,162.17,162.11,9.4719875]
[1730676415251,12.5562875,162.17,162.13,3.0849]
[1730676415457,12.5562875,162.17,162.11,9.4719875]
[1730676415857,12.1512875,162.21,162.17,3.0841]
[1730676416166,10.8508875,162.22,162.17,3.0841]
[1730676416561,3.0836,162.21,162.16,12.5562875]
[1730676416766,3.0836,162.21,162.16,9.4719875]
[1730676417263,3.0836,162.21,162.17,3.0841]
[1730676417465,3.0833,162.22,162.15,14.80402345]
[1730676417872,14.80402345,162.25,162.19,3.0837]
[1730676418061,3.083,162.24,162.19,3.0837]
[1730676419073,3.0827,162.25,162.2,3.0835]
[1730676419260,1.3529,162.27,162.19,14.80402345]
[1730676420263,3.0825,162.26,162.22,3.0831]
[1730676420462,2.655,162.28,162.19,14.80402345]
[1730676420662,18.06402345,162.34,162.21,14.80402345]
[1730676420966,3.0816,162.31,162.26,3.0824]
[1730676421269,3.0816,162.31,162.24,18.04402345]
[1730676421473,3.0811,162.34,162.24,18.04402345]
[1730676421664,3.0811,162.34,162.26,14.80402345]
[1730676421859,3.0811,162.34,162.29,3.0818]
[1730676422369,22.11232345,162.36,162.26,14.80402345]
[1730676423171,14.80402345,162.31,162.24,3.24]
[1730676423375,14.80402345,162.34,162.24,3.24]
[1730676423678,3.0812,162.33,162.26,14.80402345]
[1730676424666,3.0812,162.33,162.28,3.082]
[1730676424976,3.0811,162.34,162.26,14.80402345]
[1730676425179,22.11232345,162.36,162.28,3.082]
[1730676425370,14.80402345,162.33,162.24,3.24]
[1730676425570,3.0815,162.32,162.24,3.24]
[1730676425865,4.0683,162.36,162.28,14.80402345]
[1730676426073,7.1491,162.36,162.28,14.80402345]
[1730676426576,7.1491,162.36,162.31,3.0814]
[1730676426765,2.6731,162.36,162.29,3.24]
[1730676426978,3.0806,162.37,162.3,14.80402345]
[1730676427680,3.0803,162.38,162.3,14.80402345]
[1730676427972,18.04402345,162.41,162.3,14.80402345]
[1730676428377,3.0803,162.38,162.33,3.0811]
[1730676428866,3.0805,162.37,162.32,3.0812]
[1730676429277,3.0805,162.37,162.3,14.80402345]
[1730676429571,3.0805,162.37,162.33,3.0812]
[1730676430574,14.80402345,162.38,162.29,3.24]
[1730676431079,3.0809,162.35,162.31,3.0814]
[1730676432481,3.0806,162.36,162.32,3.0813]
[1730676432671,14.80402345,162.38,162.32,3.0813]
[1730676432880,14.80402345,162.4,162.32,3.0813]
[1730676433479,14.80402345,162.4,162.33,3.0811]
[1730676433677,3.0805,162.37,162.33,3.0811]
[1730676434078,3.0815,162.32,162.28,3.0821]
[1730676434277,3.0815,162.32,162.25,14.80402345]
[1730676434576,3.0815,162.32,162.28,3.082]
[1730676434775,18.04402345,162.36,162.25,14.80402345]
[1730676434971,3.0812,162.33,162.25,14.80402345]
[1730676435480,3.0814,162.32,162.28,3.082]
[1730676435782,14.80402345,162.36,162.28,3.082]
[1730676435973,14.80402345,162.36,162.25,14.80402345]
[1730676436168,14.80402345,162.36,162.29,3.0818]
[1730676436368,3.24,162.37,162.29,3.0818]
[1730676436977,14.80402345,162.36,162.28,6.3221]
[1730676437473,2.7345,162.35,162.28,6.3221]
[1730676437877,2.7345,162.35,162.28,3.24]
[1730676438178,3.0813,162.33,162.29,3.0819]
[1730676441177,2.7345,162.35,162.28,3.24]
[1730676441178,3.0815,162.32,162.28,3.24]
[1730676441382,3.0815,162.32,162.25,18.04402345]
[1730676441884,3.0815,162.32,162.27,3.0821]
[1730676442979,2.7345,162.35,162.25,18.04402345]
[1730676444087,3.0812,162.33,162.29,3.0819]
[1730676446185,3.0814,162.32,162.28,3.0821]
[1730676446794,3.0812,162.33,162.25,18.04402345]
[1730676447481,3.0812,162.33,162.28,3.082]
[1730676448985,3.0812,162.33,162.29,3.0819]
[1730676450181,3.081,162.34,162.3,3.0816]
[1730676455592,3.0812,162.33,162.3,3.0816]
[1730676458786,3.0812,162.33,162.27,14.80402345]
[1730676458999,3.0815,162.32,162.28,3.082]
[1730676459386,3.0815,162.32,162.28,12.55632119]
[1730676459698,3.0815,162.32,162.29,3.0819]
[1730676463907,12.19772119,162.35,162.3,9.47432119]
[1730676464195,9.47432119,162.38,162.33,9.47432119]
[1730676464594,9.47432119,162.38,162.33,12.55532119]
[1730676464595,3.0806,162.37,162.33,12.55532119]
[1730676465196,3.0806,162.37,162.34,3.081]
[1730676470897,3.0806,162.36,162.34,3.081]
[1730676471101,4.589,162.41,162.34,3.081]
[1730676472094,3.0805,162.37,162.34,3.081]
[1730676472409,4.589,162.41,162.34,3.081]
[1730676472598,14.79346848,162.4,162.32,3.0812]
[1730676473094,14.79346848,162.4,162.3,3.24]
[1730676473402,14.79346848,162.4,162.33,3.0811]
[1730676473602,3.0808,162.36,162.33,3.0811]
[1730676474800,1.349,162.41,162.33,14.79346848]
[1730676475002,2.7868,162.42,162.35,14.79346848]
[1730676475200,2.7868,162.42,162.35,18.03346848]
[1730676475403,5.8664,162.42,162.38,3.0801]
[1730676476903,5.8664,162.42,162.35,18.03346848]
[1730676476904,3.24,162.44,162.35,18.03346848]
[1730676477211,19.43736848,162.46,162.38,14.79346848]
[1730676477406,4.6439,162.46,162.38,14.79346848]
[1730676477607,105.84362813,162.43,162.4,3.0797]
[1730676481010,105.84362813,162.43,162.39,3.08]
[1730676482215,3.0795,162.42,162.39,3.08]
[1730676485214,102.76432813,162.43,162.38,14.79346848]
[1730676485415,105.84362813,162.43,162.4,12.5406226]
[1730676485715,102.76432813,162.43,162.4,9.4609226]
[1730676485924,102.76432813,162.43,162.41,12.5406226]
[1730676487812,3.0796,162.42,162.39,12.5409226]
[1730676488008,9.4609226,162.42,162.36,9.4609226]
[1730676488212,102.76432813,162.43,162.38,9.4609226]
[1730676488614,3.0797,162.41,162.38,12.5410226]
[1730676490429,9.4609226,162.41,162.35,12.5417226]
[1730676490723,9.4609226,162.4,162.34,9.4609226]
[1730676490927,3.0804,162.38,162.34,12.5417226]
[1730676491628,3.0804,162.38,162.34,9.4609226]
[1730676491827,3.0804,162.38,162.35,3.0808]
[1730676492219,3.0805,162.37,162.33,15.7820226]
[1730676492530,9.4609226,162.37,162.31,9.4609226]
[1730676493331,9.4609226,162.34,162.29,9.4609226]
[1730676493531,9.4609226,162.36,162.3,9.4609226]
[1730676493732,3.0811,162.34,162.3,12.5425226]
[1730676494931,3.0809,162.35,162.3,12.5425226]
[1730676495330,3.0809,162.35,162.3,3.0816]
[1730676495718,3.0809,162.35,162.31,3.0815]
[1730676497837,16.07700885,162.39,162.28,18.03990885]
[1730676498143,16.07700885,162.39,162.3,14.79990885]
[1730676498144,1.2771,162.39,162.3,14.79990885]
[1730676499238,3.0805,162.37,162.33,3.0811]
[1730676499943,1.2771,162.39,162.3,14.79990885]
[1730676500139,3.0807,162.36,162.32,3.0813]
[1730676500341,14.79990885,162.38,162.28,18.03990885]
[1730676500844,3.081,162.35,162.3,3.0816]
[1730676501240,3.081,162.35,162.28,18.03990885]
[1730676501441,3.0807,162.36,162.28,18.03990885]
[1730676502853,1.2771,162.39,162.34,3.0809]
[1730676502854,3.0802,162.38,162.34,3.0809]
[1730676503048,1.2771,162.39,162.3,14.79990885]
[1730676503448,3.0805,162.37,162.33,3.0811]
[1730676504252,3.0803,162.38,162.34,3.081]
[1730676504558,1.2771,162.39,162.3,14.79990885]
[1730676504742,3.0803,162.38,162.34,3.0809]
[1730676505850,1.2771,162.39,162.3,14.79990885]
[1730676506046,1.2771,162.39,162.28,18.03990885]
[1730676507247,3.0804,162.37,162.33,3.0812]
[1730676512264,3.0805,162.37,162.33,3.0811]
[1730676512764,3.0809,162.35,162.31,3.0815]
[1730676513259,3.0809,162.35,162.28,18.03990885]
[1730676513460,3.0806,162.36,162.32,3.0813]
[1730676515355,12.55201319,162.36,162.32,3.0813]
[1730676524969,9.47141319,162.36,162.31,9.47141319]
[1730676525168,9.47141319,162.38,162.32,9.47141319]
[1730676525962,12.55161319,162.38,162.34,3.0809]
[1730676527778,9.47141319,162.38,162.32,9.47141319]
[1730676527974,9.47141319,162.38,162.35,3.0807]
[1730676528471,9.47141319,162.38,162.32,9.47141319]
[1730676528673,9.47141319,162.33,162.27,9.47141319]
[1730676529777,9.47141319,162.33,162.3,3.0816]
[1730676529972,9.47141319,162.33,162.27,9.47141319]
[1730676530178,9.47141319,162.33,162.31,3.0815]
[1730676532073,9.47141319,162.34,162.32,3.0813]
[1730676532977,9.47141319,162.34,162.3,3.0816]
[1730676533372,4.5171,162.39,162.27,9.47141319]
[1730676533373,9.47141319,162.33,162.27,9.47141319]
[1730676533979,9.47141319,162.33,162.3,3.0816]
[1730676535078,9.47141319,162.33,162.27,9.47141319]
[1730676535079,12.55221319,162.35,162.31,3.0814]
[1730676535473,9.47141319,162.35,162.29,9.47141319]
[1730676535779,9.47141319,162.35,162.28,9.47141319]
[1730676536278,9.47141319,162.33,162.28,9.47141319]
[1730676536877,9.47141319,162.33,162.3,3.0816]
[1730676537071,12.55241319,162.34,162.28,9.47141319]
[1730676537686,12.55241319,162.34,162.31,3.0815]
[1730676539267,12.55241319,162.34,162.3,3.0817]
[1730676539679,3.0812,162.33,162.28,9.47141319]
[1730676539878,9.47141319,162.34,162.28,9.47141319]
[1730676540586,12.55251319,162.34,162.3,3.0816]
[1730676541180,9.47141319,162.31,162.26,9.47141319]
[1730676541482,9.47141319,162.29,162.24,3.24]
[1730676541783,9.47141319,162.3,162.27,3.0823]
[1730676545882,12.55311319,162.3,162.27,3.0823]
[1730676547177,12.55341319,162.29,162.25,3.0826]
[1730676550487,9.47141319,162.29,162.23,12.71141319]
[1730676550792,9.47141319,162.3,162.25,9.47141319]
[1730676551088,9.47141319,162.32,162.27,9.47141319]
[1730676551296,2.6922,162.33,162.29,12.55321319]
[1730676551297,5.7734,162.33,162.29,12.55321319]
[1730676552680,2.6922,162.33,162.3,3.0816]
[1730676552880,12.71141319,162.37,162.31,9.47141319]
[1730676553080,9.47141319,162.37,162.31,9.47141319]
[1730676553281,3.0806,162.36,162.32,3.0812]
[1730676554488,9.47141319,162.35,162.3,9.47141319]
[1730676554691,12.55251319,162.34,162.3,12.55311319]
[1730676554990,12.55251319,162.34,162.3,9.47141319]
[1730676555687,9.47141319,162.34,162.31,3.0814]
[1730676555886,3.0808,162.35,162.31,3.0814]
[1730676556784,3.0811,162.34,162.31,3.0814]
[1730676557092,12.55251319,162.34,162.31,3.0814]
[1730676557887,9.47141319,162.34,162.3,3.0817]
[1730676558086,12.55261319,162.33,162.3,3.0817]
[1730676559095,2.7532,162.38,162.3,3.0817]
[1730676559096,9.47141319,162.34,162.3,3.0817]
[1730676559392,12.55251319,162.34,162.3,3.0817]
[1730676559593,12.55251319,162.34,162.29,9.47141319]
[1730676559594,9.47141319,162.34,162.29,9.47141319]
[1730676559794,9.47141319,162.34,162.31,3.0815]
[1730676560197,3.081,162.35,162.32,3.0813]
[1730676561798,9.47141319,162.36,162.3,9.47141319]
[1730676562198,9.47141319,162.34,162.29,9.47141319]
[1730676562900,9.47141319,162.33,162.28,3.24]
[1730676563303,12.55241319,162.34,162.3,3.0816]
[1730676563498,9.47141319,162.34,162.29,9.47141319]
[1730676564011,9.47141319,162.34,162.31,3.0815]
[1730676567407,12.55241319,162.34,162.31,3.0815]
[1730676570131,5.8335,162.38,162.33,9.47141319]
[1730676570320,2.7532,162.38,162.33,9.47141319]
[1730676570626,2.7532,162.38,162.33,12.71141319]
[1730676571013,2.7532,162.38,162.35,3.0808]
[1730676572522,3.0799,162.4,162.36,12.55181319]
[1730676573314,9.47141319,162.41,162.36,12.55181319]
[1730676573315,3.0797,162.41,162.38,3.0801]
[1730676580217,9.47141319,162.44,162.38,9.47141319]
[1730676580924,3.0794,162.43,162.39,3.08]
[1730676582526,3.0795,162.42,162.39,3.08]
[1730676584319,9.47141319,162.44,162.38,12.71141319]
[1730676584614,3.0793,162.43,162.4,3.0797]
[1730676591721,3.0793,162.43,162.4,12.55111319]
[1730676593834,9.47141319,162.45,162.4,9.47141319]
[1730676594035,3.0796,162.42,162.4,9.47141319]
[1730676599332,3.08,162.4,162.38,3.24]
[1730676599532,3.08,162.4,162.36,3.0806]
[1730676601341,3.08,162.4,162.37,3.0804]
[1730676602647,3.08,162.4,162.37,12.55181319]
[1730676606139,3.0801,162.39,162.35,3.0806]
[1730676606439,9.47141319,162.38,162.32,9.47141319]
[1730676606643,3.0807,162.36,162.32,3.0813]
[1730676606840,9.47141319,162.35,162.28,9.47141319]
[1730676607046,9.47141319,162.35,162.28,12.71141319]
[1730676607340,3.0811,162.34,162.3,3.0816]
[1730676607547,9.47141319,162.35,162.3,9.47141319]
[1730676608141,9.47141319,162.38,162.33,9.47141319]
[1730676608446,10.81891319,162.4,162.35,9.47141319]
[1730676608642,13.89891319,162.4,162.36,3.0806]
[1730676608950,10.81891319,162.4,162.35,9.47141319]
[1730676609645,3.08,162.39,162.35,12.55211319]
[1730676612245,5.7791,162.41,162.36,9.47141319]
[1730676613348,3.0799,162.4,162.37,3.0804]
[1730676613539,12.55131319,162.4,162.37,3.0804]
[1730676613941,12.55161319,162.39,162.35,3.0807]
[1730676614143,9.47141319,162.38,162.35,3.0807]
[1730676616040,12.55171319,162.38,162.34,6.3208]
[1730676617649,3.0805,162.37,162.34,3.24]
[1730676617847,3.0805,162.37,162.32,9.47141319]
[1730676618149,9.47141319,162.38,162.32,9.47141319]
[1730676618454,3.0807,162.36,162.32,12.55261319]
[1730676618856,3.0807,162.36,162.32,9.47141319]
[1730676619157,3.0805,162.37,162.33,3.0812]
[1730676619653,9.47141319,162.38,162.32,9.47141319]
[1730676619849,3.0799,162.4,162.36,3.0805]
[1730676620245,9.47141319,162.42,162.37,9.47141319]
[1730676620450,12.55101319,162.42,162.38,3.0801]
[1730676622257,12.55101319,162.42,162.39,3.08]
[1730676624053,9.47141319,162.41,162.36,3.24]
[1730676624259,12.55111319,162.41,162.38,3.0802]
[1730676625154,12.55161319,162.39,162.36,3.0805]
[1730676625349,9.47141319,162.38,162.36,3.0805]
[1730676625650,9.47141319,162.38,162.34,9.47141319]
[1730676625853,9.47141319,162.36,162.31,9.47141319]
[1730676626056,9.47141319,162.36,162.31,12.71141319]
[1730676626242,9.47141319,162.36,162.31,9.47141319]
[1730676626558,9.47141319,162.34,162.3,3.24]
[1730676626853,3.24,162.4,162.3,3.24]
[1730676626854,9.47141319,162.33,162.3,3.24]
[1730676627851,9.47141319,162.33,162.26,9.47141319]
[1730676628053,9.47141319,162.32,162.27,3.24]
[1730676628350,9.47141319,162.32,162.26,12.71141319]
[1730676628854,12.55291319,162.32,162.28,3.082]
[1730676629254,9.47141319,162.3,162.24,12.71141319]
[1730676629454,12.55321319,162.3,162.24,12.71141319]
[1730676629761,9.47141319,162.27,162.22,9.47141319]
[1730676630060,9.47141319,162.26,162.2,12.71141319]
[1730676630647,9.47141319,162.26,162.22,3.0832]
[1730676630852,12.55371319,162.27,162.22,3.0832]
[1730676632760,9.47141319,162.27,162.23,3.0829]
[1730676633163,9.47141319,162.29,162.23,9.47141319]
[1730676633662,9.47141319,162.29,162.24,3.0827]
[1730676633860,9.47141319,162.29,162.23,9.47141319]
[1730676634460,9.47141319,162.29,162.25,3.0826]
[1730676636055,9.47141319,162.3,162.27,3.0821]
[1730676637362,9.47141319,162.3,162.24,9.47141319]
[1730676637666,12.55331319,162.29,162.23,9.47141319]
[1730676638060,12.55331319,162.29,162.25,3.0826]
[1730676638262,12.55331319,162.29,162.23,9.47141319]
[1730676639159,12.55331319,162.29,162.25,3.0826]
[1730676639562,9.47141319,162.3,162.24,9.47141319]
[1730676639764,12.55331319,162.3,162.26,3.0825]
[1730676642073,9.47141319,162.31,162.25,9.47141319]
[1730676642279,9.47141319,162.31,162.28,3.082]
[1730676642870,12.55311319,162.31,162.28,3.082]
[1730676643068,12.55311319,162.31,162.25,9.47141319]
[1730676643268,9.47141319,162.31,162.28,3.082]
[1730676643669,12.55301319,162.31,162.28,3.082]
[1730676643872,9.47141319,162.3,162.28,3.082]
[1730676644570,12.55301319,162.31,162.28,3.082]
[1730676651078,3.0816,162.31,162.28,3.082]
[1730676652874,3.0814,162.32,162.29,3.0819]
[1730676653275,79.18113449,162.34,162.28,9.47141319]
[1730676653476,79.18113449,162.34,162.3,9.47141319]
[1730676653477,75.20853449,162.34,162.3,9.47141319]
[1730676653885,65.7371213,162.34,162.3,9.47141319]
[1730676654675,68.8181213,162.34,162.31,3.0814]
[1730676657185,3.081,162.34,162.31,3.0814]
[1730676658385,9.47141319,162.36,162.31,3.0814]
[1730676658588,3.0809,162.35,162.31,3.0814]
[1730676660991,3.081,162.34,162.31,3.0814]
[1730676661196,3.081,162.34,162.31,12.55281319]
[1730676661691,9.47141319,162.36,162.33,3.081]
[1730676661692,3.0807,162.36,162.33,3.081]
[1730676662493,3.0805,162.37,162.34,3.081]
[1730676663500,3.0807,162.36,162.33,3.0811]
[1730676667681,75.19114805,162.38,162.32,3.0813]
[1730676667884,9.47141319,162.33,162.26,9.47141319]
[1730676668092,65.71973486,162.38,162.22,2.7499]
[1730676668093,9.47141319,162.3,162.25,9.47141319]
[1730676668285,3.082,162.29,162.26,3.0824]
[1730676668481,9.47141319,162.3,162.26,3.0824]
[1730676668681,9.47141319,162.29,162.23,9.47141319]
[1730676668887,3.0824,162.27,162.22,12.55451319]
[1730676669093,9.47141319,162.27,162.22,9.47141319]
[1730676669292,9.47141319,162.26,162.2,9.47141319]
[1730676669590,9.47141319,162.26,162.2,12.69141319]
[1730676670395,3.0828,162.25,162.21,3.0834]
[1730676671296,9.47141319,162.26,162.2,12.69141319]
[1730676671297,12.55401319,162.26,162.2,12.69141319]
[1730676671599,9.47141319,162.27,162.22,12.55461319]
[1730676671989,12.55391319,162.27,162.22,12.55461319]
[1730676672188,9.47141319,162.26,162.21,3.0834]
[1730676673290,12.55401319,162.26,162.21,3.0834]
[1730676673695,12.55401319,162.26,162.2,12.69141319]
[1730676673901,12.55401319,162.26,162.22,3.0833]
[1730676674289,9.47141319,162.29,162.23,9.47141319]
[1730676675096,9.47141319,162.29,162.25,3.0826]
[1730676676388,9.47141319,162.28,162.25,3.0826]
[1730676676592,9.47141319,162.26,162.22,3.0832]
[1730676677000,9.47141319,162.28,162.21,9.47141319]
[1730676677596,9.47141319,162.28,162.22,9.47141319]
[1730676677807,3.0824,162.27,162.23,3.0829]
[1730676678404,9.47141319,162.26,162.21,9.47141319]
[1730676678603,2.6335,162.32,162.21,3.0834]
[1730676678604,9.47141319,162.24,162.21,3.0834]
[1730676681206,9.47141319,162.24,162.15,1.3074]
[1730676681207,12.55451319,162.23,162.16,9.47141319]
[1730676681412,9.47141319,162.2,162.15,3.22]
[1730676681600,1.3106,162.24,162.12,3.22]
[1730676681601,9.47141319,162.17,162.12,3.22]
[1730676682007,9.47141319,162.17,162.14,3.0847]
[1730676682212,9.47141319,162.18,162.13,9.47141319]
[1730676683310,3.0837,162.2,162.12,3.22]
[1730676683709,14.8112648,162.21,162.14,3.0847]
[1730676683910,17.8952648,162.19,162.14,3.0847]
[1730676684819,14.8112648,162.19,162.13,3.0848]
[1730676685815,3.084,162.18,162.13,3.0848]
[1730676686119,3.084,162.18,162.09,18.0512648]
[1730676686707,3.084,162.18,162.13,3.0848]
[1730676693315,14.8112648,162.21,162.11,14.8112648]
[1730676693519,17.8948648,162.21,162.16,3.0843]
[1730676693821,17.8948648,162.21,162.11,14.8112648]
[1730676694019,17.8948648,162.21,162.17,3.0841]
[1730676694323,68.48266685,162.23,162.15,3.24]
[1730676694526,2.6992,162.23,162.15,3.24]
[1730676694918,5.7823,162.23,162.19,3.0837]
[1730676695323,1.3106,162.24,162.15,18.0512648]
[1730676695517,16.1218648,162.24,162.14,2.6186]
[1730676695718,16.1218648,162.24,162.15,3.24]
[1730676696320,3.0832,162.23,162.17,3.0841]
[1730676696532,16.1218648,162.24,162.15,3.24]
[1730676697124,3.0836,162.21,162.17,3.0841]
[1730676697322,1.3106,162.24,162.15,3.24]
[1730676697323,16.1218648,162.24,162.15,3.24]
[1730676698323,3.0832,162.23,162.19,3.0837]
[1730676701229,16.1218648,162.24,162.15,3.24]
[1730676701622,3.0833,162.22,162.19,3.0838]
[1730676707120,16.1218648,162.24,162.15,3.24]
[1730676707433,9.47896718,162.18,162.13,12.69896718]
[1730676707830,9.47896718,162.18,162.16,3.0843]
[1730676708225,9.47896718,162.17,162.13,3.22]
[1730676708943,9.47896718,162.17,162.14,3.0846]
[1730676709328,3.0841,162.18,162.14,3.0846]
[1730676709939,17.89768593,162.19,162.15,3.0846]
[1730676710520,16.14228593,162.21,162.12,3.22]
[1730676710721,1.3285,162.21,162.13,14.81378593]
[1730676711227,19.22588593,162.21,162.16,3.0842]
[1730676713333,16.14228593,162.21,162.16,3.0842]
[1730676713637,14.81378593,162.19,162.13,3.0848]
[1730676715239,3.0843,162.17,162.13,3.0848]
[1730676717140,3.0842,162.18,162.09,18.03378593]
[1730676717341,14.81378593,162.19,162.09,18.03378593]
[1730676718343,3.0843,162.17,162.13,3.0849]
[1730676718640,3.0847,162.15,162.11,3.0852]
[1730676719542,3.0847,162.15,162.12,3.0851]
[1730676719748,5.7088,162.16,162.12,3.0851]
[1730676720546,2.6243,162.16,162.13,3.0848]
[1730676722749,1.3475,162.16,162.13,3.0848]
[1730676725844,3.0839,162.19,162.1,3.22]
[1730676726053,16.13438593,162.2,162.1,3.22]
[1730676726547,19.21808593,162.2,162.16,3.0843]
[1730676727249,19.21808593,162.2,162.17,3.0841]
[1730676729450,3.0843,162.17,162.14,3.0846]
[1730676729747,14.81378593,162.17,162.06,63.22058593]
[1730676729953,3.0846,162.15,162.12,3.0851]
[1730676730144,14.81378593,162.15,162.08,3.22]
[1730676731243,17.89848593,162.15,162.11,3.0852]
[1730676731437,9.47352527,162.13,162.11,3.0852]
[1730676731642,9.47352527,162.13,162.1,3.0855]
[1730676731952,9.47352527,162.13,162.08,3.22]
[1730676732143,9.47352527,162.13,162.08,3.0858]
[1730676732453,12.55852527,162.13,162.07,12.69352527]
[1730676732836,12.55852527,162.13,162.1,3.0855]
[1730676733935,9.47352527,162.11,162.06,12.69352527]
[1730676734141,9.47352527,162.1,162.06,3.22]
[1730676734648,9.47352527,162.1,162.06,3.0862]
[1730676734946,9.47352527,162.08,162.02,3.22]
[1730676735350,12.55952527,162.08,162.03,3.0867]
[1730676735555,9.47352527,162.06,162.01,3.22]
[1730676736240,9.47352527,162.03,162.01,3.0872]
[1730676736444,9.47352527,162.02,161.98,3.22]
[1730676736647,9.47352527,162.02,161.97,12.69352527]
[1730676737051,9.47352527,162.02,162.01,3.0873]
[1730676737551,18.83677974,162.06,161.96,3.22]
[1730676738655,18.83677974,162.06,162.0,3.0873]
[1730676738656,3.0865,162.05,162.0,3.0873]
[1730676739453,21.92307974,162.06,162.01,3.0871]
[1730676741656,2.7227,162.06,161.97,14.81997974]
[1730676741865,14.81997974,162.08,161.99,14.81997974]
[1730676742055,16.20937974,162.1,161.99,14.81997974]
[1730676742252,65.83026557,162.11,162.01,14.81997974]
[1730676742550,14.81997974,162.12,162.03,14.81997974]
[1730676742762,14.81997974,162.12,162.04,3.22]
[1730676743860,17.90517974,162.12,162.04,3.22]
[1730676744160,14.81997974,162.12,162.04,3.22]
[1730676744344,14.81997974,162.12,162.09,3.0856]
[1730676745542,14.81997974,162.12,162.04,3.22]
[1730676745745,14.81997974,162.12,162.07,3.086]
[1730676746151,14.81997974,162.12,162.04,3.22]
[1730676746351,17.90517974,162.12,162.04,3.22]
[1730676746749,17.90517974,162.12,162.07,3.0859]
[1730676747743,17.90517974,162.12,162.08,3.0859]
[1730676749057,14.81997974,162.12,162.09,3.0856]
[1730676750258,17.90527974,162.12,162.07,3.086]
[1730676750459,14.81997974,162.12,162.04,3.22]
[1730676750963,3.0854,162.11,162.06,3.0862]
[1730676753562,3.0854,162.11,162.04,3.22]
[1730676753761,14.81997974,162.12,162.07,3.0861]
[1730676753762,17.90527974,162.12,162.07,3.0861]
[1730676754069,14.81997974,162.12,162.04,3.22]
[1730676754264,14.81997974,162.12,162.06,3.0862]
[1730676754574,14.81997974,162.14,162.04,18.03997974]
[1730676755562,3.0851,162.13,162.08,3.0858]
[1730676755964,3.0851,162.13,162.04,18.03997974]
[1730676757066,3.0851,162.13,162.08,3.0857]
[1730676757663,3.0851,162.13,162.04,18.03997974]
[1730676757664,17.90477974,162.14,162.1,3.0855]
[1730676758771,14.81997974,162.14,162.11,3.0852]
[1730676760373,5.6646,162.15,162.11,3.0852]
[1730676760973,16.14567974,162.16,162.14,3.0848]
[1730676761974,16.14567974,162.16,162.09,3.22]
[1730676762173,16.14567974,162.16,162.13,3.0849]
[1730676762773,19.23007974,162.16,162.13,3.0849]
[1730676763371,9.48314467,162.14,162.13,3.0849]
[1730676763878,9.48314467,162.14,162.12,3.085]
[1730676768591,9.48314467,162.13,162.09,3.0857]
[1730676768891,9.48314467,162.11,162.06,3.22]
[1730676769287,9.48314467,162.11,162.1,3.0855]
[1730676770598,9.48314467,162.13,162.1,3.0855]
[1730676770793,9.48314467,162.13,162.08,3.0858]
[1730676770994,9.48314467,162.13,162.07,9.48314467]